{"text_format":"3","workbook":"xlsx","n_sheets":4,"sheets":["กระแสเงินสด","รายได้รายเดือน","ค่าใช้จ่ายรายเดือน","ข้อมูลแผนภูมิ"],"not_rendered":{"charts":1,"defined_names":10},"read":"whole","date_system":"1900"}

{"sheet":"กระแสเงินสด","index":0,"n_rows":9,"n_cols":5,"rows_kept":9}
[null,"ชื่อ"]
[null,"งบประมาณของครอบครัว"]
[null,{"$f":"TEXT(TODAY(),\"mmmm\")","v":"มกราคม"}]
[null,{"$f":"YEAR(TODAY())","v":2017}]
[null,"หมายเหตุ: ตารางกระแสเงินสดจะถูกคำนวณโดยอัตโนมัติตามรายการจากเวิร์กชีตรายรับรายเดือนและรายจ่ายรายเดือน"]
[null,"กระแสเงินสด","ประมาณการ","ตามที่เป็นจริง","ค่าความแปรปรวน"]
[null,"รายรับทั้งหมด",{"$f":"รายได้[[#Totals],[ประมาณการ]]","v":{"v":5700,"d":"5,700"}},{"$f":"รายได้[[#Totals],[ตามที่เป็นจริง]]","v":{"v":5500,"d":"5,500"}},{"$f":"รายได้[[#Totals],[ค่าความแปรปรวน]]","v":-200}]
[null,"ค่าใช้จ่ายทั้งหมด",{"$f":"ค่าใช้จ่าย[[#Totals],[ประมาณการ]]","v":{"v":3603,"d":"3,603"}},{"$f":"ค่าใช้จ่าย[[#Totals],[ตามที่เป็นจริง]]","v":{"v":3655,"d":"3,655"}},{"$f":"ค่าใช้จ่าย[[#Totals],[ค่าความแปรปรวน]]","v":-52}]
[null,"ผลรวมเงินสด",{"$f":"C7-C8","v":{"v":2097,"d":"2,097"}},{"$f":"D7-D8","v":{"v":1845,"d":"1,845"}},{"$f":"SUBTOTAL(109,กระแสเงินสด[ค่าความแปรปรวน])","v":-252}]

{"sheet":"รายได้รายเดือน","index":1,"n_rows":9,"n_cols":5,"rows_kept":9}
[null,{"$f":"ชื่อ","v":"ชื่อ"}]
[null,{"$f":"ชื่องบประมาณ","v":"งบประมาณของครอบครัว"}]
[null,{"$f":"เดือน","v":"มกราคม"}]
[null,{"$f":"ปี","v":2017}]
[null,"รายได้รายเดือน","ประมาณการ","ตามที่เป็นจริง","ค่าความแปรปรวน"]
[null,"รายรับ 1",{"v":4000,"d":"4,000"},{"v":4000,"d":"4,000"},{"$f":"รายได้[[#This Row],[ตามที่เป็นจริง]]-รายได้[[#This Row],[ประมาณการ]]","v":0}]
[null,"รายรับ 2",{"v":1400,"d":"1,400"},{"v":1500,"d":"1,500"},{"$f":"รายได้[[#This Row],[ตามที่เป็นจริง]]-รายได้[[#This Row],[ประมาณการ]]","v":100}]
[null,"รายรับอื่นๆ",300,0,{"$f":"รายได้[[#This Row],[ตามที่เป็นจริง]]-รายได้[[#This Row],[ประมาณการ]]","v":-300}]
[null,"รายรับทั้งหมด",{"$f":"SUBTOTAL(109,รายได้[ประมาณการ])","v":{"v":5700,"d":"5,700"}},{"$f":"SUBTOTAL(109,รายได้[ตามที่เป็นจริง])","v":{"v":5500,"d":"5,500"}},{"$f":"SUBTOTAL(109,รายได้[ค่าความแปรปรวน])","v":-200}]

{"sheet":"ค่าใช้จ่ายรายเดือน","index":2,"n_rows":26,"n_cols":5,"rows_kept":26}
[null,{"$f":"ชื่อ","v":"ชื่อ"}]
[null,{"$f":"ชื่องบประมาณ","v":"งบประมาณของครอบครัว"}]
[null,{"$f":"เดือน","v":"มกราคม"}]
[null,{"$f":"ปี","v":2017}]
[null,"ค่าใช้จ่ายรายเดือน","ประมาณการ","ตามที่เป็นจริง","ค่าความแปรปรวน"]
[null,"ที่พัก",{"v":1500,"d":"1,500"},{"v":1500,"d":"1,500"},{"$f":"ค่าใช้จ่าย[[#This Row],[ประมาณการ]]-ค่าใช้จ่าย[[#This Row],[ตามที่เป็นจริง]]","v":0}]
[null,"ของชำ",250,280,{"$f":"ค่าใช้จ่าย[[#This Row],[ประมาณการ]]-ค่าใช้จ่าย[[#This Row],[ตามที่เป็นจริง]]","v":-30}]
[null,"โทรศัพท์",38,38,{"$f":"ค่าใช้จ่าย[[#This Row],[ประมาณการ]]-ค่าใช้จ่าย[[#This Row],[ตามที่เป็นจริง]]","v":0}]
[null,"ไฟฟ้า / แก๊ส",65,78,{"$f":"ค่าใช้จ่าย[[#This Row],[ประมาณการ]]-ค่าใช้จ่าย[[#This Row],[ตามที่เป็นจริง]]","v":-13}]
[null,"น้ำ / บำบัดน้ำเสีย / ขยะ",25,21,{"$f":"ค่าใช้จ่าย[[#This Row],[ประมาณการ]]-ค่าใช้จ่าย[[#This Row],[ตามที่เป็นจริง]]","v":4}]
[null,"เคเบิลทีวี",75,83,{"$f":"ค่าใช้จ่าย[[#This Row],[ประมาณการ]]-ค่าใช้จ่าย[[#This Row],[ตามที่เป็นจริง]]","v":-8}]
[null,"อินเทอร์เน็ต",60,60,{"$f":"ค่าใช้จ่าย[[#This Row],[ประมาณการ]]-ค่าใช้จ่าย[[#This Row],[ตามที่เป็นจริง]]","v":0}]
[null,"บำรุงรักษา / ซ่อมแซม",0,60,{"$f":"ค่าใช้จ่าย[[#This Row],[ประมาณการ]]-ค่าใช้จ่าย[[#This Row],[ตามที่เป็นจริง]]","v":-60}]
[null,"เลี้ยงดูเด็ก",180,150,{"$f":"ค่าใช้จ่าย[[#This Row],[ประมาณการ]]-ค่าใช้จ่าย[[#This Row],[ตามที่เป็นจริง]]","v":30}]
[null,"ค่าเล่าเรียน",250,250,{"$f":"ค่าใช้จ่าย[[#This Row],[ประมาณการ]]-ค่าใช้จ่าย[[#This Row],[ตามที่เป็นจริง]]","v":0}]
[null,"สัตว์เลี้ยง",75,80,{"$f":"ค่าใช้จ่าย[[#This Row],[ประมาณการ]]-ค่าใช้จ่าย[[#This Row],[ตามที่เป็นจริง]]","v":-5}]
[null,"การเดินทาง",280,260,{"$f":"ค่าใช้จ่าย[[#This Row],[ประมาณการ]]-ค่าใช้จ่าย[[#This Row],[ตามที่เป็นจริง]]","v":20}]
[null,"ค่าดูแลส่วนบุคคล",75,65,{"$f":"ค่าใช้จ่าย[[#This Row],[ประมาณการ]]-ค่าใช้จ่าย[[#This Row],[ตามที่เป็นจริง]]","v":10}]
[null,"ค่าประกัน",255,255,{"$f":"ค่าใช้จ่าย[[#This Row],[ประมาณการ]]-ค่าใช้จ่าย[[#This Row],[ตามที่เป็นจริง]]","v":0}]
[null,"บัตรเครดิต",100,100,{"$f":"ค่าใช้จ่าย[[#This Row],[ประมาณการ]]-ค่าใช้จ่าย[[#This Row],[ตามที่เป็นจริง]]","v":0}]
[null,"เงินกู้",0,0,{"$f":"ค่าใช้จ่าย[[#This Row],[ประมาณการ]]-ค่าใช้จ่าย[[#This Row],[ตามที่เป็นจริง]]","v":0}]
[null,"ภาษี",0,0,{"$f":"ค่าใช้จ่าย[[#This Row],[ประมาณการ]]-ค่าใช้จ่าย[[#This Row],[ตามที่เป็นจริง]]","v":0}]
[null,"ของขวัญ / การกุศล",150,150,{"$f":"ค่าใช้จ่าย[[#This Row],[ประมาณการ]]-ค่าใช้จ่าย[[#This Row],[ตามที่เป็นจริง]]","v":0}]
[null,"เงินออม",225,225,{"$f":"ค่าใช้จ่าย[[#This Row],[ประมาณการ]]-ค่าใช้จ่าย[[#This Row],[ตามที่เป็นจริง]]","v":0}]
[null,"อื่นๆ",0,0,{"$f":"ค่าใช้จ่าย[[#This Row],[ประมาณการ]]-ค่าใช้จ่าย[[#This Row],[ตามที่เป็นจริง]]","v":0}]
[null,"ผลรวม",{"$f":"SUBTOTAL(109,ค่าใช้จ่าย[ประมาณการ])","v":{"v":3603,"d":"3,603"}},{"$f":"SUBTOTAL(109,ค่าใช้จ่าย[ตามที่เป็นจริง])","v":{"v":3655,"d":"3,655"}},{"$f":"SUBTOTAL(109,ค่าใช้จ่าย[ค่าความแปรปรวน])","v":-52}]

{"sheet":"ข้อมูลแผนภูมิ","index":3,"n_rows":6,"n_cols":4,"rows_kept":6,"hidden":true}
[null,"ข้อมูลแผนภูมิ"]
[]
[null,null,"ประมาณการ","ตามที่เป็นจริง"]
[null,"กระแสเงินสด",{"$f":"กระแสเงินสด[[#Totals],[ประมาณการ]]","v":2097},{"$f":"กระแสเงินสด[[#Totals],[ตามที่เป็นจริง]]","v":1845}]
[null,"รายได้รายเดือน",{"$f":"รายได้[[#Totals],[ประมาณการ]]","v":5700},{"$f":"รายได้[[#Totals],[ตามที่เป็นจริง]]","v":5500}]
[null,"ค่าใช้จ่ายรายเดือน",{"$f":"ค่าใช้จ่าย[[#Totals],[ประมาณการ]]","v":3603},{"$f":"ค่าใช้จ่าย[[#Totals],[ตามที่เป็นจริง]]","v":3655}]